bitfinex/quotes_ETHUSD_20251120
["timestamp","ask_amount","ask_price","bid_price","bid_amount"]
[1763611861330,6.27773254,3033.4,3033.3,0.1]
[1763611862100,6.31894042,3033.4,3033.3,0.1]
[1763611862304,5.41194778,3033.4,3033.3,0.1]
[1763611862933,4.8866399,3033.4,3033.3,0.1]
[1763611863533,5.41194778,3033.4,3033.3,0.1]
[1763611864750,6.64729125,3033.4,3033.3,0.1]
[1763611865049,6.24178725,3033.4,3033.3,0.1]
[1763611865344,4.8866399,3033.4,3033.3,0.1]
[1763611866214,5.2921439,3033.4,3033.3,0.1]
[1763611866415,5.2921439,3033.4,3033.0,0.001]
[1763611866416,0.405504,3033.3,3033.0,0.001]
[1763611866623,1.89591306,3033.3,3033.2,0.1]
[1763611866826,1.89591306,3033.3,3033.0,0.001]
[1763611867078,0.405504,3033.3,3033.2,0.1]
[1763611867249,1.41411277,3033.3,3033.2,0.1]
[1763611867548,1.47830877,3033.3,3033.2,0.1]
[1763611867843,1.59030877,3033.3,3033.2,0.1]
[1763611868050,2.08750877,3033.3,3033.2,0.1]
[1763611868449,5.38424829,3033.3,3033.2,0.1]
[1763611869045,5.27224829,3033.3,3033.2,0.1]
[1763611869255,5.38424829,3033.3,3033.2,0.1]
[1763611870038,4.30534829,3033.3,3033.2,0.5809]
[1763611870242,4.41734829,3033.3,3033.2,0.39357755]
[1763611870441,4.87374829,3033.3,3033.2,0.1]
[1763611871031,1.57700877,3033.3,3033.2,0.1]
[1763611871249,4.41734829,3033.3,3033.2,0.1]
[1763611872059,4.41763397,3033.3,3033.2,0.1]
[1763611872855,1.12089445,3033.3,3033.2,0.1]
[1763611873030,0.41717791,3033.3,3033.2,0.1]
[1763611873231,1.12089445,3033.3,3033.2,0.1]
[1763611873438,0.87357791,3033.3,3033.2,0.1]
[1763611873842,1.37077791,3033.3,3033.2,0.1]
[1763611874860,4.66751743,3033.3,3033.2,0.1]
[1763611875166,0.87357791,3033.3,3033.2,0.1]
[1763611875661,0.41717791,3033.3,3033.2,0.1]
[1763611875958,3.86513952,3033.3,3033.2,0.1]
[1763611876157,0.41717791,3033.3,3033.2,0.5809]
[1763611876561,0.112,3033.3,3033.2,0.5809]
[1763611877265,0.41717791,3033.3,3033.2,0.5809]
[1763611877434,0.30517791,3033.3,3033.2,0.5809]
[1763611877763,0.002,3033.4,3033.3,0.1]
[1763611878060,0.002,3033.4,3033.3,0.5809]
[1763611879372,0.4584,3033.4,3033.0,0.001]
[1763611879580,0.30717791,3033.4,3033.3,0.1]
[1763611879772,0.41917791,3033.4,3033.3,0.5809]
[1763611879979,0.114,3033.4,3033.3,0.5809]
[1763611882646,0.114,3033.4,3033.3,1.031]
[1763611883081,0.002,3033.4,3033.3,4.32773952]
[1763611883462,0.002,3033.4,3033.3,4.43973952]
[1763611883778,0.002,3033.4,3033.3,5.34673216]
[1763611885546,0.002,3033.4,3033.3,5.35373733]
[1763611885978,0.002,3033.8,3033.5,0.4809]
[1763611886215,0.04320245,3033.8,3033.7,0.1]
[1763611886417,0.87455157,3033.8,3033.7,0.1]
[1763611886577,0.83375157,3033.8,3033.7,0.1]
[1763611886777,0.002,3033.8,3033.7,0.1]
[1763611886980,0.002,3033.8,3033.7,0.5809]
[1763611887381,0.002,3033.8,3033.7,0.1]
[1763611889315,0.492,3033.8,3033.7,0.1]
[1763611889902,0.9552,3033.8,3033.7,0.1]
[1763611890102,5.03559421,3033.8,3033.7,0.1]
[1763611890402,5.03559421,3033.8,3033.0,0.001]
[1763611890403,8.63700247,3033.8,3033.0,0.001]
[1763611890604,0.2253,3033.1,3033.0,0.101]
[1763611890810,0.4632,3033.7,3033.6,0.1]
[1763611891113,1.582072,3033.7,3033.6,0.1]
[1763611891419,2.072072,3033.7,3033.6,0.1]
[1763611892229,5.36837684,3033.7,3033.6,0.1]
[1763611892515,3.78630484,3033.7,3033.6,0.1]
[1763611892709,0.602,3033.7,3033.6,0.1]
[1763611893300,3.41027435,3033.8,3033.6,0.1]
[1763611893505,3.41027435,3033.8,3033.7,0.1]
[1763611893704,3.71547388,3033.8,3033.7,0.1]
[1763611893908,4.20547388,3033.8,3033.7,0.1]
[1763611894621,0.41919953,3033.8,3033.3,3.29673785]
[1763611894828,0.41919953,3033.8,3033.7,0.5716]
[1763611895029,0.112,3033.8,3033.7,0.5716]
[1763611897027,3.40819618,3033.8,3033.7,0.1]
[1763611898017,3.85989618,3033.8,3033.7,0.1]
[1763611898918,3.86189618,3033.8,3033.7,0.1]
[1763611899118,0.114,3033.8,3033.7,0.1]
[1763611899513,0.114,3033.8,3033.7,0.5846]
[1763611899802,3.86189618,3033.8,3033.1,0.4873]
[1763611900025,3.86189618,3033.8,3033.7,0.1]
[1763611900527,0.5657,3033.8,3033.7,0.1]
[1763611900733,3.41019618,3033.8,3033.7,0.5846]
[1763611901133,3.41019618,3033.8,3033.7,0.1]
[1763611901935,0.114,3033.8,3033.7,0.5846]
[1763611903447,0.114,3033.8,3033.7,4.36720484]
[1763611903448,0.002,3033.8,3033.7,4.36720484]
[1763611905048,0.002,3033.8,3033.7,4.37419914]
[1763611905247,0.002,3033.8,3033.7,4.36720484]
[1763611905427,0.002,3033.8,3033.7,4.37419914]
[1763611905611,0.002,3033.8,3033.7,4.36720484]
[1763611906258,0.002,3033.8,3033.7,4.37419914]
[1763611906548,0.002,3033.8,3033.7,4.36720484]
[1763611907640,0.002,3033.8,3033.7,3.88090484]
[1763611907842,0.002,3033.8,3033.7,4.36720484]
[1763611910437,0.002,3033.8,3033.7,4.37419914]
[1763611911052,0.002,3033.8,3033.7,5.28119178]
[1763611911776,0.002,3033.8,3033.7,8.80640498]
[1763611912058,0.002,3033.8,3033.7,8.79941068]
[1763611914975,0.002,3033.8,3033.7,5.27419748]
[1763611915271,0.002,3033.8,3033.7,8.79941068]
[1763611916235,0.002,3033.8,3033.7,9.20491468]
[1763611916448,0.002,3034.1,3034.0,4.53220584]
[1763611916755,0.002,3034.1,3034.0,5.61510584]
[1763611917459,0.002,3034.1,3034.0,5.62209199]
[1763611917888,0.002,3034.1,3034.0,6.02060984]
[1763611918199,0.002,3034.5,3034.4,0.505504]
[1763611918340,0.002,3034.5,3034.4,6.02758513]
[1763611920349,0.002,3034.5,3034.4,9.31615426]
[1763611922242,1e-08,3034.6,3034.5,1.36249664]
[1763611922472,0.4905,3035.9,3035.8,0.1]
[1763611922990,0.9422,3035.9,3035.8,0.1]
[1763611929659,0.002,3036.3,3035.8,3.74702463]
[1763611929849,0.002,3036.3,3036.2,0.1]
[1763611930159,0.467,3036.3,3036.2,0.1]
[1763611930315,0.467,3036.3,3036.2,3.39359067]
[1763611930515,0.002,3036.3,3036.2,3.39359067]
[1763611930750,0.002,3036.3,3036.2,3.84659067]
[1763611931142,0.002,3036.3,3036.2,4.30629067]
[1763611933318,0.002,3036.3,3036.2,5.22020976]
[1763611933852,0.002,3036.3,3036.2,5.21328331]
[1763611937153,0.9597,3036.3,3036.2,1.00699264]
[1763611937455,0.9597,3036.3,3036.2,4.75358331]
[1763611937456,0.002,3036.3,3036.2,4.75358331]
[1763611938163,0.467,3036.3,3036.2,0.1]
[1763611938652,0.467,3036.3,3036.2,3.39359067]
[1763611939640,0.002,3036.3,3036.2,3.39359067]
[1763611939952,0.002,3036.3,3036.2,3.84659067]
[1763611942270,0.002,3036.3,3036.2,7.82698147]
[1763611943978,0.9597,3036.3,3036.2,0.1]
[1763611944182,0.9597,3036.3,3036.2,3.39359067]
[1763611944581,0.467,3036.3,3036.2,3.39359067]
[1763611944949,0.9597,3036.3,3036.2,3.39359067]
[1763611945343,0.467,3036.3,3036.2,3.39359067]
[1763611945875,0.467,3036.3,3036.2,0.1]
[1763611946183,0.467,3036.3,3036.2,3.39359067]
[1763611947381,0.467,3036.3,3036.2,0.1]
[1763611947589,0.467,3036.3,3036.2,3.39359067]
[1763611947789,0.9651,3036.3,3036.2,0.1]
[1763611948182,1.39094399,3036.3,3036.2,0.1]
[1763611949084,0.9651,3036.3,3036.2,0.1]
[1763611951983,0.002,3036.3,3036.2,0.5689]
[1763611952171,0.002,3036.3,3036.2,3.86249067]
[1763611952483,0.4766,3036.3,3036.2,0.1]
[1763611952685,0.9747,3036.3,3036.2,0.1]
[1763611952854,0.9747,3036.3,3036.2,3.39359067]
[1763611953054,0.4766,3036.3,3036.2,3.39359067]
[1763611954089,0.4766,3036.3,3036.2,0.1]
[1763611954388,0.9747,3036.3,3036.2,0.1]
[1763611955764,0.9747,3036.3,3036.2,3.39359067]
[1763611955986,0.9747,3036.3,3036.2,0.1]
[1763611956363,0.002,3036.3,3036.2,8.29017411]
[1763611956768,0.002,3036.3,3036.2,8.74297411]
[1763611962005,0.002,3036.3,3036.2,8.29017411]
[1763611963292,0.002,3036.3,3036.2,8.27607411]
[1763611963473,0.002,3036.3,3036.2,8.77477411]
[1763611966804,0.002,3036.3,3036.2,9.18027811]
[1763611967302,0.002,3036.3,3036.2,8.77477411]
[1763611967507,0.002,3036.3,3036.2,8.27607411]
[1763611968109,0.002,3036.3,3036.2,8.77477411]
[1763611968536,0.4928,3036.3,3036.2,4.30058331]
[1763611969605,0.4928,3036.3,3036.2,3.39359067]
[1763611970092,0.4928,3036.3,3036.2,4.30058331]
[1763611970287,0.4928,3036.3,3036.2,0.1]
[1763611970502,0.4928,3036.3,3036.2,6.91428147]
[1763611970690,0.4928,3036.3,3036.2,3.39359067]
[1763611971097,0.9498,3036.3,3036.2,3.39359067]
[1763611973225,0.4928,3036.3,3036.2,3.39359067]
[1763611973432,0.002,3036.3,3036.2,7.36908147]
[1763611974116,0.002,3036.3,3036.2,7.86778147]
[1763611974602,0.002,3036.3,3036.2,7.36908147]
[1763611974929,0.002,3036.3,3036.2,0.1]
[1763611975128,0.9498,3036.3,3036.2,3.39359067]
[1763611976003,0.4928,3036.3,3036.2,3.39359067]
[1763611976826,0.002,3036.3,3036.2,8.27607411]
[1763611977246,0.4928,3036.3,3036.2,4.30058331]
[1763611978141,0.4928,3036.3,3036.2,7.82127411]
[1763611978435,0.002,3036.3,3036.2,7.82127411]
[1763611978612,0.4928,3036.3,3036.2,7.82127411]
[1763611978804,0.002,3036.3,3036.2,8.27607411]
[1763611981514,0.9498,3036.3,3036.2,0.1]
[1763611983036,0.002,3036.3,3036.2,3.84839067]
[1763611983217,0.002,3036.3,3036.2,4.75538331]
[1763611983738,0.4928,3036.3,3036.2,4.30058331]
[1763611984220,0.9498,3036.3,3036.2,4.30058331]
[1763611984543,0.4928,3036.3,3036.2,4.30058331]
[1763611985041,0.9498,3036.3,3036.2,4.30058331]
[1763611985242,0.4928,3036.3,3036.2,4.30058331]
[1763611986636,0.9498,3036.3,3036.2,4.30058331]
[1763611988660,0.9498,3036.3,3036.2,1.00699264]
[1763611988834,0.9498,3036.3,3036.2,4.30058331]
[1763611990562,0.002,3036.3,3036.2,4.30058331]
[1763611990865,0.002,3036.3,3036.2,4.80038331]
[1763611995150,0.002,3036.3,3036.2,4.30058331]
[1763611995151,0.4656,3036.3,3036.2,4.30058331]
[1763611995347,0.952,3036.3,3036.2,4.30058331]
[1763611999552,0.952,3036.3,3036.2,0.1]
[1763612000849,0.952,3036.3,3036.2,3.39359067]
[1763612001866,0.952,3036.3,3036.2,0.1]
[1763612002284,0.952,3036.3,3036.2,3.39359067]
[1763612002496,0.952,3036.3,3036.2,0.1]
[1763612004897,0.002,3036.3,3036.2,8.32025491]
[1763612005066,0.002,3036.3,3036.2,8.80575491]
[1763612006203,0.002,3036.3,3036.2,8.32025491]
[1763612007394,0.002,3036.3,3036.2,8.81495491]
[1763612010493,0.002,3036.3,3036.2,8.32025491]
[1763612010668,0.499,3036.3,3036.2,0.1]
[1763612011291,0.9933,3036.3,3036.2,0.1]
[1763612013488,4.28678219,3036.3,3036.2,0.1]
[1763612013689,0.9933,3036.3,3036.2,0.1]
[1763612014005,1.42197223,3036.3,3036.2,0.1]
[1763612015186,4.71545442,3036.3,3036.2,0.1]
[1763612016807,1.1053,3036.3,3036.2,0.1]
[1763612017214,0.9933,3036.3,3036.2,0.1]
[1763612017436,1.1053,3036.3,3036.2,0.1]
[1763612019126,4.39878219,3036.3,3036.2,0.1]
[1763612019516,1.1053,3036.3,3036.2,0.1]
[1763612019834,1.54517106,3036.3,3036.2,0.1]
[1763612020992,4.83865325,3036.3,3036.2,0.1]
[1763612021830,1.43317106,3036.3,3036.2,0.1]
[1763612022032,0.9933,3036.3,3036.2,0.1]
[1763612022207,0.499,3036.3,3036.2,0.1]
[1763612022804,0.9532,3036.3,3036.2,0.1]
[1763612023006,0.002,3036.3,3036.2,4.31129067]
[1763612023608,0.002,3036.3,3036.2,3.85869067]
[1763612024022,0.4645,3036.3,3036.2,3.39359067]
[1763612024395,0.4645,3036.3,3036.2,0.1]
[1763612024897,0.4645,3036.3,3036.2,3.39359067]
[1763612025100,0.002,3036.3,3036.2,3.39359067]
[1763612025910,0.002,3036.3,3036.2,3.85869067]
[1763612027331,0.4645,3036.3,3036.2,3.39359067]
[1763612027537,0.4645,3036.3,3036.2,0.1]
[1763612027732,0.9187,3036.3,3036.2,0.1]
[1763612029644,0.95986852,3036.3,3034.2,0.001]
[1763612029826,2.95759941,3036.2,3034.2,0.001]
[1763612030017,6.58870036,3035.5,3034.2,3.29673057]
[1763612030213,1.12592311,3035.4,3034.2,6.59249222]
[1763612030437,0.5662,3035.4,3034.2,6.59249222]
[1763612030603,0.4542,3035.3,3034.2,6.59249222]
[1763612031031,0.76079456,3035.3,3034.2,6.59249222]
[1763612031221,0.4625,3034.6,3034.2,6.59249222]
[1763612031417,0.112,3034.9,3034.2,6.59249222]
[1763612031623,0.3086,3034.9,3034.2,6.59249222]
[1763612031818,0.112,3034.9,3034.2,6.59249222]
[1763612032024,0.112,3034.9,3034.4,6.59108884]
[1763612032240,0.1966,3034.8,3034.3,3.29564495]
[1763612032446,0.5662,3034.9,3034.3,6.59129798]
[1763612032447,0.112,3034.9,3034.3,6.59129798]
[1763612032654,0.112,3035.0,3034.7,0.4651]
[1763612032835,0.112,3035.1,3034.7,0.4651]
[1763612033145,0.112,3035.1,3034.5,0.001]
[1763612033333,0.5662,3035.1,3034.5,0.001]
[1763612035341,0.4542,3035.1,3034.5,0.001]
[1763612035521,0.112,3035.0,3034.5,0.001]
[1763612036547,0.5662,3035.0,3034.5,0.001]
[1763612037125,0.112,3035.0,3034.5,0.001]
[1763612037329,0.112,3035.0,3034.5,0.4536]
[1763612037852,0.5662,3035.0,3034.5,0.001]
[1763612038851,0.112,3035.0,3034.5,0.4536]
[1763612039630,0.5662,3035.0,3034.5,0.001]
[1763612040952,0.112,3035.0,3034.5,0.4536]
[1763612041458,3.29637411,3035.5,3034.5,0.4536]
[1763612041459,0.002,3035.5,3034.9,0.4651]
[1763612041625,0.112,3035.3,3035.0,3.29489291]
[1763612041952,0.4625,3035.0,3034.5,4.20342024]
[1763612042159,0.4625,3035.0,3034.6,0.90699264]
[1763612042326,0.9167,3035.0,3034.6,0.90699264]
[1763612043969,0.4625,3035.0,3034.7,3.29521863]
[1763612044140,0.4542,3034.9,3034.7,3.29521863]
[1763612044339,0.0592,3034.8,3034.7,3.29521863]
[1763612046471,0.0592,3034.8,3034.5,3.2964276]
[1763612046472,0.0592,3034.8,3034.5,6.59186342]
[1763612049969,0.4542,3035.0,3034.5,6.59186342]
[1763612050769,3.40664046,3035.3,3034.5,7.06456342]
[1763612050974,0.4892,3035.2,3034.5,7.06456342]
[1763612051174,0.4912,3035.5,3034.6,0.00696489]
[1763612051496,0.112,3035.4,3034.5,6.59186342]
[1763612051800,0.6012,3035.4,3034.5,6.59186342]
[1763612052303,3.89568272,3035.4,3034.5,6.59186342]
[1763612052475,0.4892,3035.3,3034.5,6.59186342]
[1763612053577,3.40649348,3035.4,3033.9,0.001]
[1763612053578,0.1888,3034.6,3033.9,0.001]
[1763612053774,0.405504,3034.2,3033.9,0.001]
[1763612053974,0.1888,3034.6,3033.9,0.001]
[1763612053975,0.889804,3034.0,3033.9,0.001]
[1763612054377,0.889804,3034.0,3033.8,0.001]
[1763612054378,4.20308018,3033.9,3033.8,0.001]
[1763612054597,7.34190383,3033.9,3033.8,0.001]
[1763612054770,7.11652094,3033.9,3033.8,0.001]
[1763612054972,7.82070585,3033.9,3033.8,0.001]
[1763612057615,9.27491418,3033.9,3033.8,0.001]
[1763612057822,8.97994657,3033.9,3033.8,0.001]
[1763612057978,1.31249664,3033.8,3033.6,0.001]
[1763612058290,2.45755597,3033.7,3033.6,0.001]
[1763612058500,6.96396843,3033.7,3033.6,0.001]
[1763612058870,7.84415672,3033.7,3033.6,0.001]
[1763612059111,6.96396843,3033.7,3033.6,0.001]
[1763612059410,8.34121592,3033.7,3033.6,0.001]
[1763612060209,9.22097499,3033.7,3033.6,0.001]
[1763612060566,8.35838949,3033.7,3033.6,0.001]
[1763612060771,8.35838949,3033.7,3033.6,0.0954]
[1763612060772,7.18512642,3033.7,3033.6,0.0954]
[1763612061011,7.59063042,3033.7,3033.6,0.0954]
[1763612061176,7.18512642,3033.7,3033.6,0.0954]
[1763612062298,7.47863042,3033.7,3033.6,0.0954]
[1763612062507,7.59063042,3033.7,3033.6,0.0954]
[1763612063323,7.47863042,3033.7,3033.6,0.0954]
[1763612063529,5.26885233,3033.7,3033.6,0.0954]
[1763612063826,6.58134897,3033.7,3033.6,0.0954]
[1763612064326,6.71336238,3033.7,3033.6,0.0954]
[1763612066278,6.58134897,3033.7,3033.6,0.0954]
[1763612066389,6.46934897,3033.7,3033.6,0.0954]
[1763612066589,6.58134897,3033.7,3033.6,0.0954]
[1763612074527,6.71336631,3033.7,3033.6,0.0954]
[1763612074923,7.41566766,3033.7,3033.6,0.0954]
[1763612075131,6.69352453,3033.7,3033.6,0.0954]
[1763612075331,6.80552453,3033.7,3033.6,0.0954]
[1763612075526,5.99084897,3033.7,3033.6,0.0954]
[1763612075851,3.43020737,3033.8,3033.7,0.0944]
[1763612075852,0.002,3033.8,3033.7,0.0944]
[1763612076049,0.002,3033.8,3033.7,1.0592]
[1763612076050,0.114,3033.8,3033.7,1.0592]
[1763612076248,0.002,3033.8,3033.7,1.0592]
[1763612076564,0.114,3033.8,3033.7,1.0592]
[1763612078151,0.002,3033.8,3033.7,1.0592]
[1763612078351,0.114,3033.8,3033.7,1.0592]
[1763612078552,0.002,3033.8,3033.7,1.0592]
[1763612078762,0.002,3033.8,3033.7,4.35550484]
[1763612078984,0.002,3033.8,3033.7,1.0592]
[1763612079846,0.002,3033.8,3033.7,0.5673]
[1763612080042,3.30299618,3033.8,3033.7,0.0944]
[1763612080277,3.64861577,3033.8,3033.7,0.0944]
[1763612080447,3.64381577,3033.8,3033.7,0.0944]
[1763612080984,3.29819618,3033.8,3033.7,0.5693]
[1763612082489,0.002,3033.8,3033.7,1.0518]
[1763612082682,0.002,3033.8,3033.7,0.5693]
[1763612086361,3.36109618,3033.8,3033.7,0.0944]
[1763612086565,4.44351877,3033.8,3033.7,0.0944]
[1763612086990,4.44351877,3033.8,3032.6,0.001]
[1763612087185,1.055604,3032.6,3032.1,0.1858]
[1763612087392,0.405504,3032.4,3032.1,0.1858]
[1763612087594,0.405504,3032.4,3032.3,0.101]
[1763612088462,3.70322197,3032.4,3032.3,0.101]
[1763612088814,5.30222109,3032.4,3032.3,0.101]
[1763612088994,5.85412109,3032.4,3032.3,0.001]
[1763612089295,5.85412109,3032.4,3032.3,0.101]
[1763612089484,5.75402109,3032.4,3032.3,0.101]
[1763612089883,5.75402109,3032.4,3032.3,0.001]
[1763612090088,5.30222109,3032.4,3032.3,0.101]
[1763612090398,4.89671709,3032.4,3032.3,0.101]
[1763612090597,0.70686242,3032.4,3032.3,0.5759]
[1763612090802,0.112,3032.4,3032.3,0.5759]
[1763612096126,0.112,3032.4,3032.3,1.0584]
[1763612097325,0.112,3032.4,3032.3,0.5759]
[1763612097528,0.112,3032.4,3032.3,1.0584]
[1763612100521,3.40971797,3032.4,3032.3,1.0584]
[1763612100835,3.40971797,3032.4,3032.3,0.5759]
[1763612101332,4.68356556,3032.4,3032.3,0.001]
[1763612101635,7.08397685,3032.4,3032.3,0.001]
[1763612101928,1.31249664,3032.3,3031.9,0.001]
[1763612102103,0.0048,3032.0,3031.9,0.001]
[1763612102297,0.90928704,3032.0,3031.9,0.001]
[1763612102499,5.75632769,3032.0,3031.9,0.001]
[1763612102901,5.75577123,3032.0,3031.9,0.001]
[1763612103323,5.79699814,3032.0,3031.9,0.001]
[1763612103736,5.75577123,3032.0,3031.9,0.101]
[1763612103933,5.15727123,3032.0,3031.9,0.101]
[1763612104134,3.41495303,3032.0,3031.9,0.101]
[1763612104329,3.45617994,3032.0,3031.9,0.101]
[1763612104710,3.41495303,3032.0,3031.9,0.101]
[1763612104908,3.41495303,3032.0,3031.9,0.5759]
[1763612104909,3.29815303,3032.0,3031.9,0.5759]
[1763612105107,3.47585303,3032.0,3031.9,0.101]
[1763612105341,4.13547273,3032.0,3031.9,0.101]
[1763612105908,4.06977273,3032.0,3031.9,0.101]
[1763612106110,4.61032004,3032.4,3032.3,0.1]
[1763612106311,5.3143452,3032.4,3032.3,0.1]
[1763612106541,5.4920452,3032.4,3032.3,0.1]
[1763612106818,4.78802004,3032.4,3032.3,0.1]
[1763612107014,4.31681604,3032.4,3032.3,0.1]
[1763612107219,0.002,3032.5,3032.4,0.1]
[1763612107434,3.41168603,3032.5,3032.4,0.5749]
[1763612107833,4.14830229,3032.5,3031.9,0.001]
[1763612108032,0.405504,3031.9,3031.2,0.001]
[1763612108234,1.068204,3031.6,3031.2,0.001]
[1763612108559,5.38578484,3031.6,3031.5,0.101]
[1763612109051,5.27378484,3031.6,3031.5,0.101]
[1763612109257,5.38578484,3031.6,3031.5,0.101]
[1763612109553,5.59151102,3031.6,3031.5,0.001]
[1763612109725,5.59151102,3031.6,3031.5,0.101]
[1763612109923,6.05281102,3031.6,3031.5,0.101]
[1763612110227,0.112,3031.6,3031.5,0.4675]
[1763612110427,3.70365703,3032.0,3031.9,0.1]
[1763612110643,4.72264967,3032.0,3031.9,0.1]
[1763612110846,4.79334967,3032.0,3031.9,0.1]
[1763612111045,5.952173,3032.0,3031.9,0.1]
[1763612111246,6.427373,3032.0,3031.9,0.1]
[1763612111618,5.952173,3032.0,3031.9,0.1]
[1763612112425,5.363969,3032.0,3031.9,0.5665]
[1763612112619,3.41015303,3032.0,3031.9,0.5665]
[1763612112820,3.88015303,3032.0,3031.9,0.1]
[1763612113250,4.78714567,3032.0,3031.9,0.1]
[1763612113447,5.19264967,3032.0,3031.9,0.1]
[1763612113766,6.371523,3032.0,3031.9,0.1]
[1763612116246,7.07797928,3032.0,3031.9,0.1]
[1763612116459,7.38454306,3032.0,3031.9,0.1]
[1763612117963,6.91454306,3032.0,3031.9,0.1]
[1763612118564,5.60204642,3032.0,3031.9,0.5665]
[1763612118772,4.42317309,3032.0,3031.9,0.5665]
[1763612119743,4.42328114,3032.0,3031.9,0.5665]
[1763612119936,4.42328114,3032.0,3031.9,0.1]
[1763612120268,4.42328114,3032.0,3031.9,0.5665]
[1763612121868,4.61032337,3032.3,3032.2,0.1]
[1763612122166,6.51110479,3032.3,3032.2,0.1]
[1763612122376,6.98110479,3032.3,3032.2,0.1]
[1763612122820,7.06100479,3032.3,3032.2,0.1]
[1763612126175,8.23539275,3032.3,3032.2,0.1]
[1763612126970,7.06100479,3032.3,3032.2,0.1]
[1763612127170,8.15549275,3032.3,3032.2,0.1]
[1763612127475,0.90699264,3032.2,3032.1,0.1]
[1763612127690,3.107269,3032.2,3032.1,0.1]
[1763612128064,3.573369,3032.2,3032.1,0.1]
[1763612128386,0.858404,3032.1,3031.5,0.001]
[1763612128565,0.701004,3031.6,3031.5,0.001]
[1763612128747,3.18295803,3031.6,3031.5,0.001]
[1763612128950,3.18295803,3031.6,3031.5,0.101]
[1763612129174,6.94254623,3031.6,3031.5,0.101]
[1763612129379,6.83054623,3031.6,3031.5,0.101]
[1763612129560,8.13222511,3031.6,3031.5,0.101]
[1763612131648,7.57072511,3031.6,3031.5,0.101]
[1763612131876,8.39914464,3031.6,3031.5,0.101]
[1763612132395,8.84864464,3031.6,3031.5,0.101]
[1763612133192,7.67122511,3031.6,3031.5,0.101]
[1763612133350,8.84832442,3031.6,3031.5,0.101]
[1763612133679,8.84832885,3031.6,3031.5,0.101]
[1763612136189,8.84832885,3031.6,3031.5,0.001]
[1763612136361,8.84832885,3031.6,3031.5,0.101]
[1763612136760,7.67122511,3031.6,3031.5,0.101]
[1763612136963,8.84829095,3031.6,3031.5,0.101]
[1763612137261,8.84835187,3031.6,3031.5,0.001]
[1763612137968,8.84835187,3031.6,3031.5,0.101]
[1763612138408,1.31249664,3031.5,3031.2,0.001]
[1763612138606,0.512004,3031.3,3031.2,0.001]
[1763612138803,2.43245803,3031.3,3031.2,0.001]
[1763612139004,2.89005803,3031.3,3031.2,0.001]
[1763612139170,1.52546539,3031.3,3031.2,0.101]
[1763612139371,4.60811475,3031.3,3031.2,0.101]
[1763612140008,3.43154853,3031.3,3031.2,0.101]
[1763612140167,7.90667163,3031.3,3031.2,0.101]
[1763612141397,7.44907163,3031.3,3031.2,0.101]
[1763612141632,7.90667163,3031.3,3031.2,0.101]
[1763612142010,6.73046318,3031.3,3031.2,0.101]
[1763612142531,7.44907163,3031.3,3031.2,0.001]
[1763612142755,7.44907163,3031.3,3031.2,0.101]
[1763612143134,7.90667163,3031.3,3031.2,0.101]
[1763612144196,6.73046318,3031.3,3031.2,0.101]
[1763612145419,7.44845009,3031.3,3031.2,0.101]
[1763612145734,6.73046318,3031.3,3031.2,0.101]
[1763612146317,6.73046318,3031.3,3031.2,0.001]
[1763612146507,7.34195009,3031.3,3031.2,0.001]
[1763612146830,6.16636318,3031.3,3031.2,0.101]
[1763612147127,7.5122079,3031.3,3031.2,0.101]
[1763612147504,7.5122079,3031.3,3031.2,0.001]
[1763612147704,7.0482079,3031.3,3031.2,0.101]
[1763612147934,6.27836318,3031.3,3031.2,0.5918]
[1763612148530,5.37137054,3031.3,3031.2,0.5918]
[1763612148893,6.27836318,3031.3,3031.2,0.5918]
[1763612149136,6.38486318,3031.3,3031.2,0.101]
[1763612149533,6.27836318,3031.3,3031.2,0.101]
[1763612149732,5.73687268,3031.3,3031.2,1.047]
[1763612149946,5.73687268,3031.3,3031.2,0.5918]
[1763612150174,5.73687268,3031.3,3031.2,0.101]
[1763612150383,6.24580911,3031.3,3031.2,0.101]
[1763612151780,6.34030911,3031.3,3031.2,0.101]
[1763612151960,9.07219527,3031.3,3031.2,0.001]
[1763612152285,9.03095884,3031.3,3031.2,0.001]
[1763612152451,7.85537193,3031.3,3031.2,0.001]
[1763612152840,9.0316766,3031.3,3031.2,0.001]
[1763612153156,7.85537193,3031.3,3031.2,0.001]
[1763612153678,9.03178636,3031.3,3031.2,0.001]
[1763612154239,7.85537193,3031.3,3031.2,0.001]
[1763612155149,0.90699264,3031.2,3031.1,0.101]
[1763612155464,4.81059177,3031.2,3031.1,0.101]
[1763612155969,8.07558594,3031.2,3031.1,0.101]
[1763612156168,9.80211201,3031.2,3031.1,0.001]
[1763612156389,0.405504,3031.1,3030.9,0.1]
[1763612156613,0.405504,3031.1,3030.8,0.001]
[1763612156614,1.57279664,3030.9,3030.8,0.001]
[1763612156768,3.87467471,3030.9,3030.8,0.001]
[1763612157180,5.99736445,3030.9,3030.8,0.001]
[1763612157380,7.17454325,3030.9,3030.8,0.001]
[1763612157871,7.17454325,3030.9,3030.8,0.101]
[1763612158077,9.87951334,3030.9,3030.8,0.001]
[1763612158294,9.14761334,3030.9,3030.8,0.001]
[1763612158494,8.57251276,3030.9,3030.8,0.5918]
[1763612158695,4.42456781,3030.9,3030.8,0.5918]
[1763612159066,6.21508946,3030.9,3030.8,1.047]